[Event "2nd Namma Bengaluru Open-A 2025"]
[Site "Bengaluru"]
[Date "2025.04.15"]
[Round "7.1"]
[White "Vaz, Ethan"]
[Black "Petrosyan, Manuel"]
[Result "1/2-1/2"]
[Annotator "TA"]
[ECO "C45"]
[WhiteElo "2430"]
[BlackElo "2544"]
[PlyCount "56"]
[EventDate "2025.04.10"]
[EventType "swiss"]
[EventCountry "IND"]
[SourceTitle "playchess.com"]
[Source "ChessBase"]
[SourceQuality "1"]
[TimeControl "5400+30"]

{[%evp 14,56,-4,-8,7,0,3,6,8,7,33,17,13,18,17,18,18,16,33,22,25,22,49,0,0,0,0,0,0,0,5,3,1,0,0,0,3,0,0,0,5,0,0,0,9]} 1. e4 {[%emt 0:00:30]} e5 {[%emt 0:00:30]} 2. Nf3 {[%emt 0:00:30]} Nc6 {[%emt 0:00:30]} 3. d4 {[%emt 0:00:30]} exd4 {[%emt 0:00:30]} 4. Nxd4 {[%emt 0:00:30]} Nf6 {[%emt 0:00:30]} 5. Nxc6 {[%emt 0:00:30]} bxc6 {[%emt 0:00:30]} 6. e5 {[%emt 0:00:30]} Qe7 {[%emt 0:00:30]} 7. Qe2 {[%emt 0:00:30]} Nd5 {[%emt 0:00:30]} 8. h4 {[%emt 0:00:30]} d6 {[%emt 0:00:30] C45: Scotch Game.} 9. c4 {[%emt 0:00:30]} Nb6 {[%emt 0:00:30]} 10. exd6 {[%emt 0:00:30]} Qxe2+ {[%emt 0:00:30]} 11. Bxe2 {[%emt 0:00:30]} cxd6 {[%emt 0:00:30]} 12. Nc3 {[%emt 0:00:30]} Be6 {[%emt 0:00:30]} 13. Bf3 {[%emt 0:00:30]} Rc8 {[%emt 0:00:30]} 14. b3 {[%emt 0:00:30]} d5 {[%emt 0:00:30]} 15. cxd5 {[%emt 0:00:30]} Nxd5 {[%emt 0:00:30]} 16. Nxd5 $146 {[%emt 0:00:30]} (16. Ne4 Bb4+ 17. Bd2 O-O 18. O-O c5 19. Rfc1 Bxd2 20. Nxd2 Nb6 21. Ne4 c4 22. b4 {1-0 Tsydypov,Z (2552)-Bezgodov,A (2449) Cheliabinsk Lozovatsky Memorial-A 2021 (3)}) 16... cxd5 {[%emt 0:00:30]} 17. O-O {[%emt 0:00:30]} Be7 {[%emt 0:00:30]} 18. Bb2 {[%emt 0:00:30] Against Bf6} (18. Be3 $14 {feels stronger.}) 18... O-O $11 {[%emt 0:00:30] The position is equal.} 19. g3 {[%emt 0:00:30]} Rc2 {[%emt 0:00:30]} 20. Bd4 {[%emt 0:00:30][%cal Of1c1]} a5 {[%emt 0:00:30]} 21. Rfd1 {[%emt 0:00:30]} h6 {[%emt 0:00:30]} 22. Be3 {[%emt 0:00:30]} Bf6 {[%emt 0:00:30]} 23. Bd4 {[%emt 0:00:30]} Be7 {[%emt 0:00:30]} 24. Be3 {[%emt 0:00:30]} Bf6 {[%emt 0:00:30]} 25. Bd4 {[%emt 0:00:30]} Be7 {[%emt 0:00:30]} 26. Be3 {[%emt 0:00:30]} Bf6 {[%emt 0:00:30]} 27. Bd4 {[%emt 0:00:30]} Be7 {[%emt 0:00:30]} 28. Be3 {[%emt 0:00:30]} Bf6 {[%emt 0:00:30] Weighted Error Value: White=0.04 (flawless) /Black=0.04 (flawless)   Mistake:       	White=1     	---        Inaccurate:     	---       	Black=2      OK:         	White=8     	Black=14     Best:        	White=2     	---} 1/2-1/2

[Event "2nd Namma Bengaluru Open-A 2025"]
[Site "Bengaluru"]
[Date "2025.04.15"]
[Round "7.2"]
[White "Pantsulaia, Levan"]
[Black "Padmini, Rout"]
[Result "1-0"]
[Annotator "TA"]
[ECO "A08"]
[WhiteElo "2532"]
[BlackElo "2354"]
[PlyCount "65"]
[EventDate "2025.04.10"]
[EventType "swiss"]
[EventCountry "IND"]
[SourceTitle "playchess.com"]
[Source "ChessBase"]
[SourceQuality "1"]
[TimeControl "5400+30"]

{[%evp 15,65,0,10,0,8,2,10,13,16,9,18,0,0,0,0,0,0,0,0,0,0,0,0,0,0,-69,-59,-60,-12,-17,17,-60,0,0,10,0,0,13,2,0,22,17,9,0,22,0,280,289,295,284,276,231]} 1. Nf3 {[%emt 0:00:09]} Nf6 {[%emt 0:00:50]} 2. g3 {[%emt 0:00:47]} e6 {[%emt 0:02:12]} 3. Bg2 {[%emt 0:00:11]} d5 {[%emt 0:01:06]} 4. O-O {[%emt 0:00:11]} g6 {[%emt 0:02:50]} 5. d3 {[%emt 0:01:51]} Bg7 {[%emt 0:00:09]} 6. Nbd2 {[%emt 0:00:07]} O-O {[%emt 0:00:51]} 7. e4 {[%emt 0:08:03]} c5 {[%emt 0:00:35]} 8. c3 {[%emt 0:02:38]} Nc6 {[%emt 0:02:03]} 9. Nb3 {[%emt 0:03:41]} b6 {[%emt 0:11:36]} 10. e5 {[%emt 0:01:16]} Nd7 {[%emt 0:00:07]} 11. d4 {[%emt 0:00:07] The position is equal.} a5 {[%emt 0:00:11][%cal Ba7a5,Ba5a4][%mdl 32]} 12. Bg5 {[%emt 0:02:22]} Qc7 {[%emt 0:01:19]} 13. a3 {[%emt 0:01:14]} a4 {[%emt 0:02:59] ...h6 would now be deadly.} 14. Nbd2 {[%emt 0:04:20]} h6 {[%emt 0:01:49]} 15. Be3 {[%emt 0:01:41]} Ba6 {[%emt 0:01:10]} 16. Re1 {[%emt 0:00:18]} Bd3 {[%emt 0:02:00]} 17. h4 {[%emt 0:01:29]} Rfc8 {[%emt 0:05:30]} 18. Nh2 {[%emt 0:00:53]} cxd4 {[%emt 0:05:16]} 19. cxd4 {[%emt 0:00:08]} Ne7 {[%emt 0:02:00]} 20. Ng4 {[%emt 0:09:16]} (20. Rc1 $11 Qxc1 21. Qxc1 Rxc1 22. Rxc1) 20... Nf5 {[%emt 0:02:02]} 21. Rc1 {[%emt 0:00:27]} Qb7 {[%emt 0:13:53]} (21... Qxc1 $15 {deserves consideration.} 22. Qxc1 Rxc1 23. Rxc1 h5) 22. Rxc8+ $11 {[%emt 0:05:00]} Qxc8 {[%emt 0:05:25]} 23. Nb1 {[%emt 0:00:07]} (23. Nf3 $11 Qa6 24. Bf4) 23... Bc4 {[%emt 0:05:59]} (23... Qc4 $15 24. Nd2 Qb5) 24. Qd2 {[%emt 0:09:31]} Kh7 {[%emt 0:01:59]} 25. Bf4 {[%emt 0:11:40]} b5 {[%emt 0:02:11]} 26. Ne3 {[%emt 0:00:06]} Nxe3 {[%emt 0:01:17]} 27. Bxe3 {[%emt 0:00:54]} Qb7 {[%emt 0:02:43] [#]} 28. h5 $1 {[%emt 0:04:11]} g5 {[%emt 0:02:00]} (28... Nb8 29. Qc2) 29. f4 {[%emt 0:04:41]} gxf4 {[%emt 0:00:07]} 30. Bxf4 {[%emt 0:00:05]} b4 $2 {[%emt 0:02:24][%mdl 8192] [#]} 31. Qc2+ $1 $18 {[%emt 0:00:23] White has a decisive advantage.} ({Stronger than} 31. Qxb4 Qxb4 32. axb4 Rb8 $15) ({Not} 31. axb4 Rb8 $11) 31... Kg8 {[%emt 0:00:05]} 32. Qxc4 {[%emt 0:00:06] Threatens to win with Qc1.} bxa3 {[%emt 0:00:32]} 33. bxa3 {[%emt 0:00:17] Weighted Error Value: White=0.11 (very precise) /Black=0.25 (precise) .  Loses game:     	---       	Black=1      Mistake:       	White=2     	Black=2      Inaccurate:     	---       	Black=1      OK:         	White=9     	Black=8      Best:        	White=2     	Black=2      Strong:       	White=1     	---} 1-0

[Event "2nd Namma Bengaluru Open-A 2025"]
[Site "Bengaluru"]
[Date "2025.04.15"]
[Round "7.3"]
[White "Dzhumaev, Marat"]
[Black "Nitish Belurkar"]
[Result "1-0"]
[Annotator "RC"]
[ECO "C14"]
[WhiteElo "2352"]
[BlackElo "2441"]
[PlyCount "69"]
[EventDate "2025.04.10"]
[EventType "swiss"]
[EventCountry "IND"]
[SourceTitle "playchess.com"]
[Source "ChessBase"]
[SourceQuality "1"]
[TimeControl "5400+30"]

1. e4 {[%emt 0:00:07]} e6 {[%emt 0:00:08]} 2. d4 {[%emt 0:00:31]} d5 {[%emt 0:00:04]} 3. Nc3 {[%emt 0:00:09]} Nf6 {[%emt 0:00:05]} 4. Bg5 {[%emt 0:00:11]} Be7 {[%emt 0:00:04]} 5. e5 {[%emt 0:00:16]} Nfd7 {[%emt 0:00:05]} 6. h4 {[%emt 0:00:09]} h6 {[%emt 0:00:14]} 7. Bxe7 {[%emt 0:00:09]} Qxe7 {[%emt 0:00:05]} 8. h5 {[%emt 0:01:48]} a6 {[%emt 0:05:01]} 9. f4 {[%emt 0:00:09]} c5 {[%emt 0:00:30]} 10. Nf3 {[%emt 0:00:10]} Nc6 {[%emt 0:00:25]} 11. Qd2 {[%emt 0:00:10]} b5 {[%emt 0:01:00]} 12. dxc5 {[%emt 0:06:20]} Nxc5 {[%emt 0:05:53]} 13. O-O-O {[%emt 0:00:14]} Bb7 {[%emt 0:04:22]} 14. Kb1 {[%emt 0:01:21]} Ne4 {[%emt 0:20:14]} 15. Qe1 {[%emt 0:03:13]} Qc5 {[%emt 0:11:10]} 16. Nxe4 {[%emt 0:03:09]} dxe4 {[%emt 0:00:01]} 17. Nd2 {[%emt 0:07:01]} Nb4 {[%emt 0:01:12]} 18. c3 {[%emt 0:03:11]} e3 {[%emt 0:00:09]} 19. cxb4 {[%emt 0:02:11]} exd2 {[%emt 0:00:04]} 20. Qxd2 {[%emt 0:15:06]} Qe7 {[%emt 0:01:25]} 21. Qd6 {[%emt 0:25:59]} Be4+ {[%emt 0:16:29]} 22. Ka1 {[%emt 0:00:29]} Rd8 {[%emt 0:03:38]} 23. Qxd8+ {[%emt 0:01:04]} Qxd8 {[%emt 0:00:02]} 24. Rxd8+ {[%emt 0:00:10]} Kxd8 {[%emt 0:00:06]} 25. Be2 {[%emt 0:14:13]} Ke7 {[%emt 0:12:43]} 26. Rc1 {[%emt 0:00:11]} Rd8 {[%emt 0:00:04]} 27. Rc7+ {[%emt 0:01:56]} Ke8 {[%emt 0:01:29]} 28. a4 {[%emt 0:00:07]} bxa4 {[%emt 0:02:23]} 29. g3 {[%emt 0:05:03]} Bd5 {[%emt 0:08:46]} 30. Bxa6 {[%emt 0:00:29]} Bb3 {[%emt 0:00:01]} 31. Bb5+ {[%emt 0:01:42]} Kf8 {[%emt 0:00:01]} 32. Bd7 {[%emt 0:00:10]} Rb8 {[%emt 0:01:17]} 33. b5 {[%emt 0:00:09]} Ke7 {[%emt 0:00:35]} 34. Bc6+ {[%emt 0:00:30]} Kf8 {[%emt 0:00:07]} 35. b6 {[%emt 0:00:16]} 1-0

[Event "2nd Namma Bengaluru Open-A 2025"]
[Site "Bengaluru"]
[Date "2025.04.15"]
[Round "7.4"]
[White "Rajesh, V A V"]
[Black "Nguyen, Quoc Hy"]
[Result "1/2-1/2"]
[Annotator "RC"]
[ECO "D30"]
[WhiteElo "2331"]
[BlackElo "2404"]
[PlyCount "61"]
[EventDate "2025.04.10"]
[EventType "swiss"]
[EventCountry "IND"]
[SourceTitle "playchess.com"]
[Source "ChessBase"]
[SourceQuality "1"]
[TimeControl "5400+30"]

1. d4 {[%emt 0:00:06]} Nf6 {[%emt 0:00:23]} 2. c4 {[%emt 0:00:08]} e6 {[%emt 0:00:07]} 3. g3 {[%emt 0:00:48]} d5 {[%emt 0:06:35]} 4. Bg2 {[%emt 0:00:08]} c6 {[%emt 0:00:08]} 5. Qc2 {[%emt 0:01:18]} dxc4 {[%emt 0:02:09]} 6. Qxc4 {[%emt 0:00:08]} b5 {[%emt 0:00:09]} 7. Qd3 {[%emt 0:00:30]} Bb7 {[%emt 0:00:21]} 8. Nf3 {[%emt 0:01:46]} a6 {[%emt 0:00:57]} 9. O-O {[%emt 0:02:16]} c5 {[%emt 0:00:22]} 10. a4 {[%emt 0:02:02]} b4 {[%emt 0:01:44]} 11. Bg5 {[%emt 0:00:59]} Nbd7 {[%emt 0:00:15]} 12. Nbd2 {[%emt 0:00:28]} Be7 {[%emt 0:10:01]} 13. Rac1 {[%emt 0:08:42]} cxd4 {[%emt 0:01:10]} 14. Qxd4 {[%emt 0:01:34]} O-O {[%emt 0:00:11]} 15. Nc4 {[%emt 0:08:49]} h6 {[%emt 0:02:19]} 16. Bxf6 {[%emt 0:06:12]} Bxf6 {[%emt 0:00:41]} 17. Qd2 {[%emt 0:00:07]} Rb8 {[%emt 0:03:03]} 18. Rfd1 {[%emt 0:04:51]} Bd5 {[%emt 0:09:44]} 19. e4 {[%emt 0:05:59]} Bxc4 {[%emt 0:06:31]} 20. Rxc4 {[%emt 0:00:04]} Qa5 {[%emt 0:01:24]} 21. b3 {[%emt 0:01:32]} Rfd8 {[%emt 0:05:34]} 22. Qe3 {[%emt 0:03:09]} Ne5 {[%emt 0:17:32]} 23. Rcc1 {[%emt 0:04:45]} Rxd1+ {[%emt 0:01:01]} 24. Rxd1 {[%emt 0:00:03]} Rc8 {[%emt 0:00:11]} 25. Nxe5 {[%emt 0:24:29]} Qxe5 {[%emt 0:00:02]} 26. Bf1 {[%emt 0:00:30]} Rc3 {[%emt 0:00:47]} 27. Rd3 {[%emt 0:00:26]} Be7 {[%emt 0:03:07]} 28. Kg2 {[%emt 0:09:41]} Bc5 {[%emt 0:02:23]} 29. Qf4 {[%emt 0:00:10]} Qxf4 {[%emt 0:03:52]} 30. gxf4 {[%emt 0:00:10]} Rxd3 {[%emt 0:00:32]} 31. Bxd3 {[%emt 0:00:04]} 1/2-1/2

[Event "2nd Namma Bengaluru Open-A 2025"]
[Site "Bengaluru"]
[Date "2025.04.15"]
[Round "7.5"]
[White "Harsh Suresh"]
[Black "Wagh Suyog"]
[Result "1/2-1/2"]
[Annotator "RC"]
[ECO "B13"]
[WhiteElo "2389"]
[BlackElo "2289"]
[PlyCount "119"]
[EventDate "2025.04.10"]
[EventType "swiss"]
[EventCountry "IND"]
[SourceTitle "playchess.com"]
[Source "ChessBase"]
[SourceQuality "1"]
[TimeControl "5400+30"]

1. e4 {[%emt 0:00:36]} c6 {[%emt 0:00:17]} 2. d4 {[%emt 0:00:38]} d5 {[%emt 0:00:02]} 3. exd5 {[%emt 0:00:24]} cxd5 {[%emt 0:00:05]} 4. Bd3 {[%emt 0:00:09]} Nf6 {[%emt 0:02:51]} 5. h3 {[%emt 0:01:35]} Nc6 {[%emt 0:06:24]} 6. c3 {[%emt 0:00:14]} e5 {[%emt 0:12:48]} 7. dxe5 {[%emt 0:00:23]} Nxe5 {[%emt 0:00:06]} 8. Nf3 {[%emt 0:00:06]} Nxd3+ {[%emt 1:11:57]} 9. Qxd3 {[%emt 0:00:34]} Be7 {[%emt 0:00:00]} 10. Be3 {[%emt 0:07:50]} O-O {[%emt 0:00:00]} 11. Nbd2 {[%emt 0:01:15]} Be6 {[%emt 0:00:00]} 12. O-O {[%emt 0:13:15]} Qd7 {[%emt 0:00:00]} 13. Nd4 {[%emt 0:02:29]} h6 {[%emt 0:00:00]} 14. Bf4 {[%emt 0:01:00]} Bd6 {[%emt 0:00:00]} 15. Bxd6 {[%emt 0:03:09]} Qxd6 {[%emt 0:00:00]} 16. Rfe1 {[%emt 0:15:08]} Rae8 {[%emt 0:00:00]} 17. Re2 {[%emt 0:06:41]} Bd7 {[%emt 0:00:00]} 18. Rae1 {[%emt 0:02:08]} Rxe2 {[%emt 0:00:00]} 19. Rxe2 {[%emt 0:00:38]} Re8 {[%emt 0:00:00]} 20. Rxe8+ {[%emt 0:04:11]} Nxe8 {[%emt 0:00:00]} 21. Nf1 {[%emt 0:04:30]} Nf6 {[%emt 0:06:30]} 22. Ne3 {[%emt 0:01:52]} Kf8 {[%emt 0:00:00]} 23. Ndc2 {[%emt 0:06:33]} Qc5 {[%emt 0:00:00]} 24. Nb4 {[%emt 0:04:23]} Be6 {[%emt 0:00:00]} 25. a3 {[%emt 0:00:14]} Qb6 {[%emt 0:00:00]} 26. Qd2 {[%emt 0:09:12]} Qc5 {[%emt 0:00:00]} 27. f3 {[%emt 0:04:19]} Ke7 {[%emt 0:00:00]} 28. Nbc2 {[%emt 0:00:30]} Bd7 {[%emt 0:03:30]} 29. Nd4 {[%emt 0:11:04]} Kf8 {[%emt 0:00:00]} 30. Ng4 {[%emt 0:00:00]} Nxg4 {[%emt 0:00:00]} 31. hxg4 {[%emt 0:00:00]} Qe7 {[%emt 0:00:00]} 32. Ne2 {[%emt 0:00:00]} Qc5+ {[%emt 0:00:00]} 33. Nd4 {[%emt 0:00:00]} Qe7 {[%emt 0:00:00]} 34. Nc2 {[%emt 0:00:00]} Qe5 {[%emt 0:00:00]} 35. Kf2 {[%emt 0:00:00]} Be6 {[%emt 0:00:00]} 36. Nb4 {[%emt 0:00:00]} Qg5 {[%emt 0:00:42]} 37. Qxg5 {[%emt 0:02:37]} hxg5 {[%emt 0:00:01]} 38. Ke3 {[%emt 0:00:09]} Ke7 {[%emt 0:00:01]} 39. Kd4 {[%emt 0:00:10]} Kd6 {[%emt 0:00:04]} 40. Nc2 {[%emt 0:00:13]} g6 {[%emt 0:03:14]} 41. Ne3 {[%emt 0:00:30]} f6 {[%emt 0:00:30]} 42. b4 {[%emt 0:00:30]} Bf7 {[%emt 0:00:30]} 43. g3 {[%emt 0:00:30]} b5 {[%emt 0:00:30]} 44. f4 {[%emt 0:00:30]} gxf4 {[%emt 0:00:30]} 45. gxf4 {[%emt 0:00:30]} Be6 {[%emt 0:00:30]} 46. f5 {[%emt 0:00:30]} gxf5 {[%emt 0:00:30]} 47. gxf5 {[%emt 0:00:30]} Bg8 {[%emt 0:00:30]} 48. Ng4 {[%emt 0:00:30]} Bh7 {[%emt 0:00:30]} 49. Ne3 {[%emt 0:01:50]} Bg8 {[%emt 0:01:31]} 50. Ng4 {[%emt 0:00:09]} Bh7 {[%emt 0:00:09]} 51. Nxf6 {[%emt 0:00:36]} Bxf5 {[%emt 0:00:09]} 52. Nxd5 {[%emt 0:00:04]} Bg6 {[%emt 0:01:06]} 53. Nf6 {[%emt 0:00:58]} Bc2 {[%emt 0:00:42]} 54. Ng4 {[%emt 0:00:46]} Bf5 {[%emt 0:00:13]} 55. Ne5 {[%emt 0:00:41]} Bc2 {[%emt 0:01:38]} 56. Nf7+ {[%emt 0:00:34]} Ke6 {[%emt 0:00:00]} 57. Nd8+ {[%emt 0:00:35]} Kd7 {[%emt 0:00:08]} 58. Nb7 {[%emt 0:00:07]} Kc6 {[%emt 0:00:20]} 59. Nd8+ {[%emt 0:00:48]} Kd7 {[%emt 0:01:32]} 60. Nf7 {[%emt 0:00:07]} 1/2-1/2

[Event "2nd Namma Bengaluru Open-A 2025"]
[Site "Bengaluru"]
[Date "2025.04.15"]
[Round "7.5"]
[White "Harsh Suresh"]
[Black "Wagh Suyog"]
[Result "*"]
[Annotator "RC"]
[ECO "B13"]
[WhiteElo "2389"]
[BlackElo "2289"]
[PlyCount "54"]
[EventDate "2025.04.10"]
[EventType "swiss"]
[EventCountry "IND"]
[SourceTitle "playchess.com"]
[Source "ChessBase"]
[SourceQuality "1"]
[TimeControl "5400+30"]

1. e4 {[%emt 0:00:36]} c6 {[%emt 0:00:17]} 2. d4 {[%emt 0:00:38]} d5 {[%emt 0:00:02]} 3. exd5 {[%emt 0:00:24]} cxd5 {[%emt 0:00:05]} 4. Bd3 {[%emt 0:00:09]} Nf6 {[%emt 0:02:51]} 5. h3 {[%emt 0:01:35]} Nc6 {[%emt 0:06:24]} 6. c3 {[%emt 0:00:14]} e5 {[%emt 0:12:48]} 7. dxe5 {[%emt 0:00:23]} Nxe5 {[%emt 0:00:06]} 8. Nf3 {[%emt 0:00:06]} Nxd3+ {[%emt 1:11:57]} 9. Qxd3 {[%emt 0:00:34]} Be7 {[%emt 0:00:00]} 10. Be3 {[%emt 0:07:50]} O-O {[%emt 0:00:00]} 11. Nbd2 {[%emt 0:01:15]} Be6 {[%emt 0:00:00]} 12. O-O {[%emt 0:13:15]} Qd7 {[%emt 0:00:00]} 13. Nd4 {[%emt 0:02:29]} h6 {[%emt 0:00:00]} 14. Bf4 {[%emt 0:01:00]} Bd6 {[%emt 0:00:00]} 15. Bxd6 {[%emt 0:03:09]} Qxd6 {[%emt 0:00:00]} 16. Rfe1 {[%emt 0:15:08]} Rae8 {[%emt 0:00:00]} 17. Re2 {[%emt 0:06:41]} Bd7 {[%emt 0:00:00]} 18. Rae1 {[%emt 0:02:08]} Rxe2 {[%emt 0:00:00]} 19. Rxe2 {[%emt 0:00:38]} Re8 {[%emt 0:00:00]} 20. Rxe8+ {[%emt 0:04:11]} Nxe8 {[%emt 0:00:00]} 21. Nf1 {[%emt 0:04:30]} Nf6 {[%emt 0:06:30]} 22. Ne3 {[%emt 0:01:52]} Kf8 {[%emt 0:00:00]} 23. Ndc2 {[%emt 0:06:33]} Qc5 {[%emt 0:00:00]} 24. Nb4 {[%emt 0:04:23]} Be6 {[%emt 0:00:00]} 25. a3 {[%emt 0:00:14]} Qb6 {[%emt 0:00:00]} 26. Qd2 {[%emt 0:09:12]} Qc5 {[%emt 0:00:00]} 27. f3 {[%emt 0:04:19]} Bd7 {[%emt 0:00:00]} *

[Event "2nd Namma Bengaluru Open-A 2025"]
[Site "Bengaluru"]
[Date "2025.04.15"]
[Round "7.6"]
[White "Ayush Sharma"]
[Black "Nithin Babu"]
[Result "0-1"]
[Annotator "RC"]
[ECO "C42"]
[WhiteElo "2485"]
[BlackElo "2242"]
[PlyCount "204"]
[EventDate "2025.04.10"]
[EventType "swiss"]
[EventCountry "IND"]
[SourceTitle "playchess.com"]
[Source "ChessBase"]
[SourceQuality "1"]
[TimeControl "5400+30"]

1. e4 {[%emt 0:00:05]} e5 {[%emt 0:02:20]} 2. Nf3 {[%emt 0:00:07]} Nf6 {[%emt 1:29:10]} 3. Nxe5 {[%emt 0:00:06]} d6 {[%emt 0:00:00]} 4. Nf3 {[%emt 0:00:05]} Nxe4 {[%emt 0:00:00]} 5. Nc3 {[%emt 0:00:03]} Nxc3 {[%emt 0:00:00]} 6. dxc3 {[%emt 0:00:02]} Be7 {[%emt 0:00:00]} 7. Be3 {[%emt 0:00:04]} Nd7 {[%emt 0:00:00]} 8. Qd2 {[%emt 0:00:05]} Ne5 {[%emt 0:00:00]} 9. O-O-O {[%emt 0:05:04]} Nxf3 {[%emt 0:00:00]} 10. gxf3 {[%emt 0:00:05]} Be6 {[%emt 0:00:00]} 11. Kb1 {[%emt 0:04:57]} Qd7 {[%emt 0:00:00]} 12. Rg1 {[%emt 0:04:31]} g6 {[%emt 0:00:00]} 13. Qd4 {[%emt 0:13:30]} Rg8 {[%emt 0:00:00]} 14. Bc4 {[%emt 0:02:04]} a6 {[%emt 0:00:00]} 15. Rge1 {[%emt 0:06:53]} O-O-O {[%emt 0:00:00]} 16. Qa7 {[%emt 0:01:50]} Qc6 {[%emt 0:00:00]} 17. Bxe6+ {[%emt 0:00:21]} fxe6 {[%emt 0:00:00]} 18. Bc1 {[%emt 0:03:03]} d5 {[%emt 0:00:00]} 19. Qe3 {[%emt 0:00:51]} Bc5 {[%emt 0:00:00]} 20. Qxe6+ {[%emt 0:00:07]} Qxe6 {[%emt 0:00:00]} 21. Rxe6 {[%emt 0:00:04]} Rgf8 {[%emt 0:00:00]} 22. Bg5 {[%emt 0:06:47]} Rde8 {[%emt 0:00:00]} 23. Rxe8+ {[%emt 0:00:49]} Rxe8 {[%emt 0:00:00]} 24. b4 {[%emt 0:05:22]} Bd6 {[%emt 0:00:00]} 25. Rxd5 {[%emt 0:14:28]} Re5 {[%emt 0:00:00]} 26. c4 {[%emt 0:07:59]} Rxd5 {[%emt 0:00:00]} 27. cxd5 {[%emt 0:00:06]} Bxb4 {[%emt 0:00:00]} 28. c4 {[%emt 0:03:09]} b5 {[%emt 0:00:00]} 29. cxb5 {[%emt 0:00:19]} axb5 {[%emt 0:00:00]} 30. Kc2 {[%emt 0:00:13]} Kd7 {[%emt 0:00:00]} 31. Kd3 {[%emt 0:00:23]} c5 {[%emt 0:00:00]} 32. dxc6+ {[%emt 0:00:57]} Kxc6 {[%emt 0:00:00]} 33. Ke4 {[%emt 0:02:49]} Kd6 {[%emt 0:00:00]} 34. Be3 {[%emt 0:03:21]} Ke6 {[%emt 0:00:00]} 35. Kd4 {[%emt 0:01:05]} Be7 {[%emt 0:00:00]} 36. h3 {[%emt 0:00:15]} Bd6 {[%emt 0:00:00]} 37. Bd2 {[%emt 0:02:25]} Be7 {[%emt 0:00:00]} 38. Bf4 {[%emt 0:01:21]} Bf8 {[%emt 0:00:21]} 39. Bc7 {[%emt 0:00:33]} Be7 {[%emt 0:00:31]} 40. Bb6 {[%emt 0:00:13]} Bd6 {[%emt 0:00:32]} 41. Bc5 {[%emt 0:00:39]} Be5+ {[%emt 0:00:08]} 42. Ke4 {[%emt 0:00:08]} Bf6 {[%emt 0:01:04]} 43. f4 {[%emt 0:01:27]} Bg7 {[%emt 0:01:01]} 44. f3 {[%emt 0:01:12]} Bf6 {[%emt 0:00:40]} 45. Bf8 {[%emt 0:00:45]} Bb2 {[%emt 0:00:49]} 46. Bh6 {[%emt 0:01:02]} Bc3 {[%emt 0:00:36]} 47. Kd3 {[%emt 0:01:45]} Bb2 {[%emt 0:00:38]} 48. Bf8 {[%emt 0:02:44]} Kd5 {[%emt 0:00:47]} 49. Kc2 {[%emt 0:00:10]} Bd4 {[%emt 0:00:56]} 50. Kb3 {[%emt 0:00:22]} Be3 {[%emt 0:01:06]} 51. Kb4 {[%emt 0:00:06]} Kc6 {[%emt 0:00:12]} 52. Bh6 {[%emt 0:01:00]} Bd2+ {[%emt 0:01:14]} 53. Kb3 {[%emt 0:00:01]} Kd5 {[%emt 0:00:28]} 54. Bg5 {[%emt 0:00:29]} Kd4 {[%emt 0:05:27]} 55. Kc2 {[%emt 0:00:53]} Ba5 {[%emt 0:03:16]} 56. h4 {[%emt 0:00:11]} Kc4 {[%emt 0:01:07]} 57. Bf6 {[%emt 0:01:22]} Be1 {[%emt 0:02:20]} 58. Bg5 {[%emt 0:00:55]} Bc3 {[%emt 0:01:49]} 59. Be7 {[%emt 0:02:30]} Ba5 {[%emt 0:01:56]} 60. Bf6 {[%emt 0:01:16]} Be1 {[%emt 0:00:03]} 61. Bg5 {[%emt 0:01:55]} Bb4 {[%emt 0:01:05]} 62. Bf6 {[%emt 0:00:49]} Bd6 {[%emt 0:00:42]} 63. Bg5 {[%emt 0:00:10]} Bb4 {[%emt 0:00:12]} 64. Bf6 {[%emt 0:00:12]} Ba5 {[%emt 0:00:15]} 65. Bg5 {[%emt 0:00:39]} Kd4 {[%emt 0:00:31]} 66. Bh6 {[%emt 0:01:31]} Bb4 {[%emt 0:00:35]} 67. Bg5 {[%emt 0:01:24]} Ba5 {[%emt 0:00:27]} 68. Bh6 {[%emt 0:00:16]} Bd8 {[%emt 0:01:20]} 69. Bg5 {[%emt 0:00:05]} Ba5 {[%emt 0:00:23]} 70. Bh6 {[%emt 0:00:14]} Bb4 {[%emt 0:00:05]} 71. Bg5 {[%emt 0:00:24]} Ke3 {[%emt 0:00:44]} 72. f5+ {[%emt 0:00:11]} Kxf3 {[%emt 0:00:04]} 73. f6 {[%emt 0:01:20]} Bf8 {[%emt 0:00:48]} 74. Kd3 {[%emt 0:00:08]} h6 {[%emt 0:00:54]} 75. Be3 {[%emt 0:01:13]} Kg4 {[%emt 0:00:30]} 76. Ke4 {[%emt 0:00:05]} Kxh4 {[%emt 0:00:46]} 77. Kd5 {[%emt 0:00:29]} h5 {[%emt 0:00:18]} 78. Bc5 {[%emt 0:00:33]} Bh6 {[%emt 0:00:22]} 79. Ke6 {[%emt 0:00:12]} Kg4 {[%emt 0:00:16]} 80. f7 {[%emt 0:00:53]} h4 {[%emt 0:00:48]} 81. Kf6 {[%emt 0:01:51]} h3 {[%emt 0:00:36]} 82. Bd6 {[%emt 0:00:21]} Kh5 {[%emt 0:00:35]} 83. a3 {[%emt 0:00:41]} g5 {[%emt 0:00:25]} 84. Kf5 {[%emt 0:00:25]} g4 {[%emt 0:00:22]} 85. Kf6 {[%emt 0:00:28]} g3 {[%emt 0:00:47]} 86. Bxg3 {[%emt 0:00:02]} Bf8 {[%emt 0:00:04]} 87. Kf5 {[%emt 0:01:23]} Bxa3 {[%emt 0:00:12]} 88. Be5 {[%emt 0:00:34]} Bf8 {[%emt 0:00:18]} 89. Ke4 {[%emt 0:00:23]} Kg6 {[%emt 0:00:37]} 90. Kf3 {[%emt 0:00:07]} Kxf7 {[%emt 0:00:26]} 91. Kg3 {[%emt 0:00:12]} b4 {[%emt 0:00:09]} 92. Kxh3 {[%emt 0:00:10]} b3 {[%emt 0:00:02]} 93. Bb2 {[%emt 0:00:17]} Bg7 {[%emt 0:00:12]} 94. Ba3 {[%emt 0:00:36]} Ke6 {[%emt 0:00:10]} 95. Kg4 {[%emt 0:00:10]} Kd5 {[%emt 0:03:29]} 96. Kf3 {[%emt 0:00:22]} Kc4 {[%emt 0:00:00]} 97. Ke2 {[%emt 0:00:48]} Kc3 {[%emt 0:00:00]} 98. Kd1 {[%emt 0:00:06]} Bh6 {[%emt 0:00:00]} 99. Bc1 {[%emt 0:00:45]} Kd3 {[%emt 0:00:00]} 100. Bb2 {[%emt 0:00:25]} Be3 {[%emt 0:00:00]} 101. Bc1 {[%emt 0:00:20]} Bxc1 {[%emt 0:00:00]} 102. Kxc1 {[%emt 0:00:40]} Kc3 {[%emt 0:00:00]} 0-1